[Event "EICC 2025"]
[Site "Eforie-Nord"]
[Date "2025.03.16"]
[Round "2.38"]
[White "Andersen, Mads"]
[Black "Dotzer, Lukas"]
[Result "1/2-1/2"]
[Annotator "TA"]
[ECO "E49"]
[WhiteElo "2585"]
[BlackElo "2425"]
[PlyCount "63"]
[EventDate "2025.03.14"]
[EventType "swiss"]
[EventCountry "ROU"]
[SourceTitle "playchess.com"]
[Source "ChessBase"]
[SourceQuality "1"]
[TimeControl "40/5400+30:1800+30"]

{[%evp 19,62,-4,-3,-17,-7,-10,0,0,0,0,0,0,4,0,0,3,6,0,13,5,19,26,22,24,23,22,19,13,16,8,16,8,26,12,31,12,12,12,12,13,13,13,13,13,13]} 1. d4 {[%emt 0:00:08]} Nf6 {[%emt 0:00:05]} 2. c4 {[%emt 0:00:12]} e6 {[%emt 0:00:06]} 3. Nc3 {[%emt 0:00:12]} Bb4 {[%emt 0:00:06]} 4. e3 {[%emt 0:00:17]} O-O {[%emt 0:00:06]} 5. Bd3 {[%emt 0:00:15]} d5 {[%emt 0:00:19]} 6. a3 {[%emt 0:00:21]} Bxc3+ {[%emt 0:00:22]} 7. bxc3 {[%emt 0:00:10]} dxc4 {[%emt 0:00:05]} 8. Bxc4 {[%emt 0:00:13]} c5 {[%emt 0:00:05]} 9. Ne2 {[%emt 0:00:26]} Qc7 {[%emt 0:00:38]} 10. Bd3 {[%emt 0:00:27]} Nc6 {[%emt 0:02:26]} 11. O-O {[%emt 0:00:55] E49: Nimzo-Indian: Rubinstein: 5 Bd3 d5 6 a3 Bxc3+ 7 bxc3.} e5 {[%emt 0:01:46]} 12. e4 {[%emt 0:00:53]} cxd4 {[%emt 0:07:17]} 13. cxd4 {[%emt 0:00:15] White sacrificed a pawn} Nxd4 {[%emt 0:04:59]} 14. Nxd4 {[%emt 0:00:19]} exd4 {[%emt 0:00:06]} 15. Bd2 {[%emt 0:00:19]} Ng4 {[%emt 0:03:56][%csl Gg4][%cal Rc7h2] [#]} 16. f4 {[%emt 0:00:26]} Ne3 {[%emt 0:06:37]} 17. Qc1 {[%emt 0:00:21]} Qxc1 {[%emt 0:02:56]} 18. Rfxc1 {[%emt 0:00:13]} Bd7 {[%emt 0:03:47]} 19. Kf2 {[%emt 0:17:21]} Rac8 $146 {[%emt 0:19:22]} (19... Bc6 20. Bxe3 dxe3+ 21. Kxe3 Rad8 22. g3 Rd7 23. Rab1 Rfd8 24. Rc3 g6 25. g4 h6 {½-½ Tomashevsky,E (2702)-Sadhwani,R (2622) Abu Dhabi op 28th 2022 (3)}) 20. Rab1 {[%emt 0:24:43]} (20. Bxe3 {simplifies} dxe3+ 21. Kxe3 Rfe8 22. Rxc8 Rxc8 23. a4) 20... Rxc1 {[%emt 0:05:40]} 21. Bxc1 {[%emt 0:04:55]} Bc6 {[%emt 0:02:46]} 22. Bxe3 {[%emt 0:07:30]} dxe3+ {[%emt 0:00:05]} 23. Kxe3 $11 {[%emt 0:00:09][%mdl 4096] Endgame KRB-KRB} Re8 {[%emt 0:08:15]} 24. g4 {[%emt 0:02:38]} f6 {[%emt 0:02:20]} 25. h4 {[%emt 0:04:39]} Kf7 {[%emt 0:10:40]} 26. Rb4 {[%emt 0:03:14]} Rd8 {[%emt 0:06:51]} 27. Bc2 {[%emt 0:06:29]} Ke7 {[%emt 0:05:35] The position is equal.} 28. Rc4 {[%emt 0:07:08]} Rc8 {[%emt 0:01:21]} 29. e5 {[%emt 0:02:53]} fxe5 {[%emt 0:01:33]} 30. fxe5 {[%emt 0:02:52]} Bd7 {[%emt 0:01:06]} 31. Rxc8 {[%emt 0:00:26]} Bxc8 {[%emt 0:00:03]} 32. g5 {[%emt 0:03:32] A balanced but interesting game.   Weighted Error Value: White=0.03 (flawless) /Black=0.03 (flawless)   OK:         	White=7     	Black=13     Best:        	White=1     	---} 1/2-1/2

[Event "EICC 2025"]
[Site "Eforie-Nord"]
[Date "2025.03.16"]
[Round "2.39"]
[White "Svane, Rasmus"]
[Black "Yeritsyan, Hayk"]
[Result "1-0"]
[Annotator "TA"]
[ECO "D35"]
[WhiteElo "2627"]
[BlackElo "2323"]
[PlyCount "55"]
[EventDate "2025.03.14"]
[EventType "swiss"]
[EventCountry "ROU"]
[SourceTitle "playchess.com"]
[Source "ChessBase"]
[SourceQuality "1"]
[TimeControl "40/5400+30:1800+30"]

{[%evp 15,55,12,13,5,23,10,13,14,21,29,26,28,21,10,104,97,102,110,200,200,197,195,189,170,246,253,243,221,315,310,648,681,1162,1136,2974,2679,3243,3169,5569,2291,5561,5513]} 1. d4 {[%emt 0:00:33]} Nf6 {[%emt 0:01:27]} 2. c4 {[%emt 0:00:08]} e6 {[%emt 0:00:16]} 3. Nc3 {[%emt 0:00:27]} d5 {[%emt 0:00:11]} 4. cxd5 {[%emt 0:00:22]} exd5 {[%emt 0:00:44]} 5. Bg5 {[%emt 0:00:08]} c6 {[%emt 0:01:05]} 6. e3 {[%emt 0:00:13]} h6 {[%emt 0:01:05]} 7. Bh4 {[%emt 0:00:07]} Be7 {[%emt 0:00:15]} 8. Bd3 {[%emt 0:00:11]} O-O {[%emt 0:01:53]} 9. Nge2 {[%emt 0:00:23] 9.Bg3 is the modern continuation. D35: Queen's Gambit Declined: Exchange Variation.} Re8 {[%emt 0:00:27]} 10. O-O {[%emt 0:01:29]} a5 {[%emt 0:02:10]} 11. h3 {[%emt 0:09:46] The position is equal.} Nh5 {[%emt 0:07:44]} 12. Bxe7 {[%emt 0:00:20]} Qxe7 {[%emt 0:00:08]} 13. Qd2 {[%emt 0:00:36]} Nd7 {[%emt 0:04:18]} 14. Rae1 {[%emt 0:00:21]} b5 $146 {[%emt 0:02:17]} (14... Nf8 $11 {remains equal.}) (14... Nb6 15. Nf4 Nf6 16. b3 Bd7 17. Rc1 Nc8 18. Na4 Nd6 19. Nb6 Nde4 20. Qb2 Rad8 21. Nxd7 Rxd7 {½-½ Grischuk,A (2732)-Kramnik,V (2753) Moscow CC Levitov Blitz m 2024 (8)}) 15. e4 $16 {[%emt 0:22:12][%cal Be3e4,Be4d5,Bd5c6][%mdl 32]} b4 {[%emt 0:13:51] [#]} 16. exd5 $1 {[%emt 0:03:30] and Nf4 should not be overlooked. White plays in the center} bxc3 {[%emt 0:01:39]} (16... Bb7 $16) 17. Nxc3 $18 {[%emt 0:01:29]} Qd8 {[%emt 0:00:54]} 18. Rxe8+ {[%emt 0:03:44]} (18. dxc6 Rxe1 19. Rxe1 Nhf6 20. cxd7 Bxd7) 18... Qxe8 {[%emt 0:00:09]} 19. dxc6 {[%emt 0:03:45][%csl Oc6][%cal Of1e1] White has a strong passed pawn} Nf8 {[%emt 0:16:38]} (19... Nb6) 20. d5 {[%emt 0:03:37][%mdl 1024] White has strong compensation.} Qe5 {[%emt 0:16:17]} 21. Re1 {[%emt 0:02:28]} Qd6 {[%emt 0:02:22] Black is weak on the light squares} (21... Qc7 {was necessary.} 22. d6 Qxc6) 22. Re8 {[%emt 0:13:41]} Rb8 {[%emt 0:12:21]} (22... Bb7) 23. Nb5 {[%emt 0:04:55] White is clearly winning.} Qf6 {[%emt 0:00:23]} 24. Qc2 {[%emt 0:08:33]} Bf5 {[%emt 0:03:09]} 25. Rxb8 {[%emt 0:00:59]} Bxd3 {[%emt 0:00:09]} 26. Qxd3 {[%emt 0:01:09]} Nf4 {[%emt 0:00:04] [#]} 27. Rxf8+ $1 {[%emt 0:00:57]} Kxf8 {[%emt 0:00:03]} 28. c7 {[%emt 0:00:20] Weighted Error Value: White=0.01 (flawless) /Black=1.93  Mistake:       	---       	Black=5      Inaccurate:     	---       	Black=1      OK:         	White=8     	Black=3      Best:        	White=1     	---        Strong:       	White=1     	---} 1-0

[Event "EICC 2025"]
[Site "Eforie-Nord"]
[Date "2025.03.16"]
[Round "2.39"]
[White "Palczert, Matyas"]
[Black "Muradli, Mahammad"]
[Result "0-1"]
[Annotator "TA"]
[ECO "B90"]
[WhiteElo "2434"]
[BlackElo "2584"]
[PlyCount "104"]
[EventDate "2025.03.14"]
[EventType "swiss"]
[EventCountry "ROU"]
[SourceTitle "playchess.com"]
[Source "ChessBase"]
[SourceQuality "1"]
[TimeControl "40/5400+30:1800+30"]

{[%evp 18,104,19,16,24,7,37,39,49,45,48,40,52,20,34,14,52,47,49,50,39,14,17,2,63,21,12,15,9,14,81,96,96,70,84,77,87,90,101,27,61,57,68,27,0,3,8,13,25,-121,-93,-102,70,0,0,-102,4,13,58,33,50,-108,-96,-81,-106,-82,-74,-189,-194,-185,-143,-164,-130,-188,-180,-189,-205,-182,-191,-175,-110,-114,-138,-422,-433,-431,-426,-308,-309]} 1. e4 {[%emt 0:00:08]} c5 {[%emt 0:07:26]} 2. Nf3 {[%emt 0:00:07]} d6 {[%emt 0:00:09]} 3. d4 {[%emt 0:00:14]} cxd4 {[%emt 0:00:21]} 4. Nxd4 {[%emt 0:00:25]} Nf6 {[%emt 0:00:08]} 5. Nc3 {[%emt 0:00:11]} a6 {[%emt 0:00:04]} 6. f3 {[%emt 0:00:22]} e5 {[%emt 0:00:07]} 7. Nb3 {[%emt 0:00:15]} Be6 {[%emt 0:00:19]} 8. Be3 {[%emt 0:00:17]} Be7 {[%emt 0:00:08]} 9. Qd2 {[%emt 0:00:36]} h5 {[%emt 0:00:20]} 10. Be2 {[%emt 0:00:43]} Nbd7 {[%emt 0:00:22] B90: Sicilian Najdorf: Unusual White 6th moves, 6 Be3 Ng4 and 6 Be3 e5.} 11. Nd5 {[%emt 0:01:00]} Bxd5 {[%emt 0:00:20] The modern move.} 12. exd5 {[%emt 0:00:09]} Qc7 {[%emt 0:00:07] White is slightly better.} 13. Rc1 {[%emt 0:03:51]} h4 {[%emt 0:00:26]} 14. c4 {[%emt 0:00:59]} a5 {[%emt 0:00:35]} 15. Na1 {[%emt 0:02:51][%cal Bb3a1,Ba1c2,Bc2a3,Ba3b5][%mdl 32]} Nh5 {[%emt 0:00:41]} 16. Nc2 $146 {[%emt 0:01:08]} ({Predecessor:} 16. O-O O-O 17. Nc2 Qd8 18. Na3 f5 19. Nb5 h3 20. gxh3 f4 21. Bf2 e4 22. Bd4 {½-½ Pranav,A (2525)-Raja,R (2472) Sunway Formentera op 2nd 2023 (3)}) 16... Qd8 {[%emt 0:07:29]} 17. Na3 {[%emt 0:03:33]} Nf4 {[%emt 0:00:09]} 18. Bf1 {[%emt 0:14:44]} Nc5 {[%emt 0:06:28]} 19. Rg1 {[%emt 0:05:32][%cal Oa3b5]} Qc8 {[%emt 0:18:28]} 20. g3 {[%emt 0:04:00]} Nh5 {[%emt 0:07:44]} (20... hxg3 $11 21. hxg3 Ng6) 21. g4 {[%emt 0:04:22]} Nf4 {[%emt 0:00:27]} 22. Nb5 {[%emt 0:01:50]} O-O {[%emt 0:03:50]} 23. Kd1 {[%emt 0:04:06]} Ra6 {[%emt 0:05:03]} (23... Qd8 $1 $11) 24. Bxf4 $16 {[%emt 0:10:53]} exf4 {[%emt 0:00:02]} 25. Qxf4 {[%emt 0:03:38]} Bf6 {[%emt 0:04:15]} 26. b3 {[%emt 0:04:44][%cal Oc1c2]} (26. Nxd6 $2 Qc7 27. Kc2 Rxd6 $19 (27... Qxd6 $2 28. Qxd6 Rxd6 29. g5 $19)) 26... Be5 {[%emt 0:01:18]} 27. Qd2 {[%emt 0:02:25]} g6 {[%emt 0:03:35]} 28. Kc2 {[%emt 0:04:54]} (28. Bh3 $16) 28... Bg7 {[%emt 0:01:03]} 29. Re1 {[%emt 0:02:33]} Rb6 {[%emt 0:06:20][%cal Ob6b5]} 30. Kb1 {[%emt 0:05:38][%cal Og1g2]} (30. Qxa5 $2 Ra6 31. Qb4 Rxa2+ 32. Kd1 Qa8 $19 (32... Rxh2 $2 33. Re2 $19)) 30... a4 {[%emt 0:02:28]} 31. b4 {[%emt 0:02:18][%cal Oe1e3]} Nb3 $1 $132 {[%emt 0:00:05][%mdl 2048] Black is not holding back} 32. Qd3 {[%emt 0:08:31]} Nd4 $1 {[%emt 0:01:02]} 33. a3 {[%emt 0:07:25] [#]} (33. Nxd4 Qc5 34. Nc2 Rxb4+ (34... Qxg1 35. Qd2 $15) 35. Kc1 Rb2 $11) (33. Rc1 $11) 33... Rxb5 $1 $17 {[%emt 0:06:17][%mdl 512]} 34. cxb5 {[%emt 0:00:08]} Qd8 $2 {[%emt 0:00:51]} (34... Nxb5 $17 {And now ...Nc3+ would win.} 35. Rc1 (35. Qxb5 $2 Qc3 $19) 35... Nc3+ 36. Rxc3 Bxc3 (36... Qxc3 37. Qxc3 Bxc3 38. Bb5 $14)) 35. g5 {[%emt 0:01:55]} (35. Rg2 $1 $14) 35... Re8 $11 {[%emt 0:00:36]} 36. Rd1 {[%emt 0:01:32] [#]} (36. Rxe8+ $11 Qxe8 37. Qe4) 36... Re7 {[%emt 0:07:13] Black is more active.} (36... Nf5 $1 $17 37. Qd2 Ne3) 37. Rg4 {[%emt 0:00:31][%csl LRd4,LRh4]} Nf5 {[%emt 0:02:19]} 38. Re4 {[%emt 0:00:31]} Rc7 $1 {[%emt 0:00:01]} 39. Rc1 {[%emt 0:00:29] Against Rc3} (39. Qd2 $14 {stays ahead.}) 39... Rxc1+ $17 {[%emt 0:00:28]} 40. Kxc1 {[%emt 0:00:04]} Qxg5+ {[%emt 0:00:13] Black attacks} 41. Kd1 {[%emt 0:02:08] [#]} Qf6 $1 {[%emt 0:02:29][%mdl 1024] Black has strong compensation.} 42. Bh3 {[%emt 0:07:29]} (42. Re8+ Kh7 43. Qd2 Qa1+ 44. Qc1 Qa2) (42. Qd2 $17) 42... Qa1+ $19 {[%emt 0:02:17]} 43. Ke2 {[%emt 0:03:10] Threatens to win with Bxf5.} Nd4+ {[%emt 0:00:09]} 44. Kf2 {[%emt 0:00:08][%cal Oh3f1]} Qh1 {[%emt 0:02:32]} 45. Bg2 {[%emt 0:02:34]} Qxh2 {[%emt 0:01:46]} 46. f4 {[%emt 0:00:45][%cal Od3h3]} (46. Rxd4 Bxd4+ 47. Qxd4 h3) 46... Nf5 {[%emt 0:00:59][%cal Og7d4]} 47. Qh3 {[%emt 0:02:01]} Bd4+ {[%emt 0:00:22]} 48. Rxd4 {[%emt 0:00:24]} Qg3+ {[%emt 0:01:33]} ({Better is} 48... Qxh3 $19 49. Bxh3 Nxd4) 49. Qxg3 $17 {[%emt 0:00:19]} hxg3+ {[%emt 0:00:02]} 50. Kf3 $2 {[%emt 0:00:18][%mdl 8192]} (50. Kg1 $17 {keeps fighting.} Nxd4 51. Bf1) 50... Nxd4+ $19 {[%emt 0:00:07]} 51. Kxg3 {[%emt 0:00:05]} Nxb5 {[%emt 0:00:35]} 52. Bf1 {[%emt 0:00:26]} Nxa3 {[%emt 0:00:09] Weighted Error Value: White=0.37/Black=0.17 (very precise)   Loses game:     	White=1     	---        Mistake:       	White=6     	Black=5      Inaccurate:     	White=3     	Black=3      OK:         	White=15    	Black=15     Best:        	White=3     	Black=7      Strong:       	---       	Black=4      Brilliant:      	---       	Black=1} 0-1

[Event "EICC 2025"]
[Site "Eforie-Nord"]
[Date "2025.03.16"]
[Round "2.40"]
[White "Pyrih, Roman"]
[Black "Iturrizaga Bonelli, Eduardo"]
[Result "0-1"]
[Annotator "TA"]
[ECO "B12"]
[WhiteElo "2429"]
[BlackElo "2582"]
[PlyCount "80"]
[EventDate "2025.03.14"]
[EventType "swiss"]
[EventCountry "ROU"]
[SourceTitle "playchess.com"]
[Source "ChessBase"]
[SourceQuality "1"]
[TimeControl "40/5400+30:1800+30"]

{[%evp 10,80,35,23,41,35,41,14,25,24,27,28,25,25,29,20,17,-50,-79,-56,-55,-55,-51,-73,-48,-69,-38,-53,-56,-45,-54,-58,-46,-55,-50,-55,-53,-53,-42,-54,-32,-56,-52,-126,-122,-175,-170,-232,-214,-331,-355,-335,-334,-1312,-1304,-29984,-882,-29980,-700,-881,-879,-853,-840,-794,-583,-12372,-29961,-29988,-29989,-29990,-29991,-29997,-29998]} 1. e4 {[%emt 0:00:04]} c6 {[%emt 0:04:35]} 2. d4 {[%emt 0:00:11]} d5 {[%emt 0:00:05]} 3. e5 {[%emt 0:00:10]} Bf5 {[%emt 0:00:05]} 4. Nf3 {[%emt 0:00:11]} e6 {[%emt 0:00:09]} 5. Be2 {[%emt 0:00:09]} Nd7 {[%emt 0:00:04]} 6. O-O {[%emt 0:00:15]} a5 {[%emt 0:00:02] B12: Caro-Kann: Advance Variation.} 7. a4 {[%emt 0:00:16]} f6 {[%emt 0:00:04]} 8. c3 {[%emt 0:02:53]} fxe5 {[%emt 0:16:14] The position is equal.} 9. dxe5 {[%emt 0:00:31]} Bc5 {[%emt 0:00:06][%cal Bf8c5,Bc5a7,Ba7d4][%mdl 32]} 10. Nbd2 {[%emt 0:03:30][%cal Bb1d2,Bd2b3,Bb3d4][%mdl 32]} Ne7 {[%emt 0:01:41]} 11. Nb3 $146 {[%emt 0:00:53]} (11. Nd4 Nxe5 12. g4 Bg6 13. Nxe6 Qd6 14. Nxc5 Qxc5 15. Nb3 Qb6 16. Bg5 Rf8 17. Nd4 {1-0 Bulmaga,I (2406)-Hoanca,A (1962) ROM-chT (Women) 2024 (5.1)}) 11... Ba7 {[%emt 0:04:01]} 12. Nbd4 {[%emt 0:06:29][%cal Og2g4]} O-O {[%emt 0:16:47] [#]} 13. g4 {[%emt 0:40:14]} Bxg4 $15 {[%emt 0:03:43][%csl Of2,Oh2] White has weak pawns} 14. Ng5 {[%emt 0:00:09][%csl LRe6,LRg4]} Bxe2 {[%emt 0:01:38]} 15. Qxe2 {[%emt 0:00:02]} Bxd4 {[%emt 0:00:36]} 16. Qh5 $1 {[%emt 0:00:06][%csl Gg5][%cal Rh5h7]} (16. Nxe6 $2 Rxf2 17. Rxf2 Bxf2+ 18. Qxf2 Qc8 $19) 16... h6 {[%emt 0:01:18]} ({And not} 16... Bxe5 17. Qxh7#) 17. Nxe6 {[%emt 0:00:09]} Qe8 {[%emt 0:25:29]} ({Wrong is} 17... Rf5 $2 18. Qg4 Bxe5 (18... Bxf2+ $2 19. Rxf2 $18) 19. Nxd8 $18) (17... Rxf2 $5 18. Nxd8 Rf5+ 19. cxd4 Rxh5 20. Nxb7 Nf5 $15) 18. Qxe8 {[%emt 0:00:29]} Rfxe8 {[%emt 0:00:03]} 19. cxd4 {[%emt 0:01:19]} Rac8 {[%emt 0:06:22] Prevents Nc7} 20. Nf4 {[%emt 0:00:09]} Nf5 $36 {[%emt 0:03:38][%mdl 2048] Black has the initiative.} 21. Rd1 {[%emt 0:00:33]} c5 {[%emt 0:06:19]} 22. e6 {[%emt 0:10:20]} Nf8 {[%emt 0:04:32] Excellent horsemanship.} 23. dxc5 {[%emt 0:01:10]} Nxe6 {[%emt 0:00:04]} 24. Nxd5 {[%emt 0:24:19]} Nxc5 {[%emt 0:02:42]} 25. Be3 {[%emt 0:01:01]} Nxe3 {[%emt 0:00:49]} 26. fxe3 {[%emt 0:01:07] White is now going downhill.} (26. Nxe3 $15 Rf8 27. Rf1) 26... Rc6 $17 {[%emt 0:00:04]} 27. h3 {[%emt 0:05:33]} (27. h4 $17) 27... Re5 {[%emt 0:00:05]} 28. Kg2 {[%emt 0:00:42]} (28. Kf1 $142) 28... Nb3 {[%emt 0:00:49]} 29. Ra2 {[%emt 0:01:32]} (29. Ra3 $142 Rc2+ 30. Kg3 Rxb2 31. h4) 29... Rc2+ $19 {[%emt 0:00:26]} 30. Kg3 {[%emt 0:00:01]} Nd2 {[%emt 0:00:33]} 31. Nf4 $2 {[%emt 0:01:02]} (31. e4) 31... Ne4+ {[%emt 0:01:10]} 32. Kf3 {[%emt 0:00:21]} Rf2+ {[%emt 0:00:07]} 33. Kg4 {[%emt 0:00:01]} Rg5+ {[%emt 0:00:10]} (33... h5+ $142 34. Kh4 g5+ 35. Kxh5 gxf4+ 36. Kh6 Re6+ (36... fxe3 37. Rd8+ Kf7 38. Rd7+ Kf8 39. Rd8+ Ke7 40. b3 Kxd8 41. Rxf2 exf2 42. Kg7 f1=Q 43. h4 Qf6+ 44. Kh7 Rh5+ 45. Kg8 Rh8#) 37. Kh5 Re5+ (37... fxe3 $2 38. Rd8+ Kf7 39. Rd7+ Kf6 40. Kg4 $19)) 34. Kh4 {[%emt 0:00:01]} Nd2 {[%emt 0:00:48]} 35. Rxd2 {[%emt 0:00:20]} Rxd2 {[%emt 0:00:04] KRR-KRN} 36. Ra3 {[%emt 0:00:02]} Rg1 {[%emt 0:00:44] [#] Threatens to win with ...g5+.} 37. Ne6 {[%emt 0:00:54]} Rd5 {[%emt 0:01:29]} 38. Rc3 {[%emt 0:00:31] Black mates.} Re5 {[%emt 0:00:27]} 39. Rc8+ {[%emt 0:00:56]} Kf7 {[%emt 0:00:04]} 40. Nc5 {[%emt 0:00:02]} Kg6 {[%emt 0:00:25] Weighted Error Value: White=0.66/Black=0.23 (precise)   Mistake:       	White=6     	---        Inaccurate:     	White=2     	Black=1      OK:         	White=7     	Black=14     Best:        	White=3     	Black=4      Strong:       	White=1     	---} 0-1

[Event "EICC 2025"]
[Site "Eforie-Nord"]
[Date "2025.03.16"]
[Round "2.40"]
[White "Nedelcu, Teodor-Cosmin"]
[Black "Bartel, Mateusz"]
[Result "0-1"]
[Annotator "TA"]
[ECO "B07"]
[WhiteElo "2291"]
[BlackElo "2621"]
[PlyCount "82"]
[EventDate "2025.03.14"]
[EventType "swiss"]
[EventCountry "ROU"]
[SourceTitle "playchess.com"]
[Source "ChessBase"]
[SourceQuality "1"]
[TimeControl "40/5400+30:1800+30"]

{[%evp 9,82,-1,27,17,25,-19,7,0,0,0,0,-4,27,29,65,71,70,76,150,0,1,-16,-20,-17,0,0,0,-14,-20,-18,-20,-30,-20,-23,0,-16,-7,-21,-14,-40,-38,-46,-44,-194,-177,-135,-144,-164,0,-12,-11,-594,-596,-552,-395,-718,-666,-1123,-1096,-1090,-1163,-1158,-1152,-1120,-1091,-29986,-29987,-29987,-29988,-29987,-1294,-1247,-1174,-29968,-4591]} 1. d4 {[%emt 0:11:53]} d6 {[%emt 0:00:12]} 2. e4 {[%emt 0:00:58]} Nf6 {[%emt 0:00:12]} 3. Nd2 {[%emt 0:00:11]} g6 {[%emt 0:02:37]} 4. Bd3 {[%emt 0:00:15]} Bg7 {[%emt 0:02:30]} 5. Ne2 {[%emt 0:00:13]} Nc6 {[%emt 0:01:22]} 6. c3 {[%emt 0:02:26] B07: Pirc Defence: Miscellaneous Systems.} e5 {[%emt 0:00:59]} 7. h3 {[%emt 0:01:26]} O-O {[%emt 0:08:00]} 8. O-O {[%emt 0:00:27] The position is equal.} d5 {[%emt 0:02:37]} 9. dxe5 {[%emt 0:02:33]} Nxe5 {[%emt 0:01:49]} 10. Bc2 {[%emt 0:00:05]} c6 $146 {[%emt 0:12:38]} (10... Nxe4 11. Nxe4 dxe4 12. Bxe4 Qh4 13. Qc2 c6 14. Bf4 f5 15. Bd3 Nxd3 16. Qxd3 Be6 {½-½ Rey Martinez,J (2039)-Lozano Freras,S (1975) Alcorcon Diagonal op 1st 2022 (7)}) 11. f4 {[%emt 0:06:42]} Ned7 {[%emt 0:00:03]} 12. e5 {[%emt 0:00:24]} Ne8 {[%emt 0:00:02]} 13. Nf3 {[%emt 0:00:15]} f6 {[%emt 0:00:06]} (13... Qe7 $142) 14. f5 {[%emt 0:01:17]} (14. e6 $16) 14... Nxe5 $11 {[%emt 0:11:05]} 15. Nxe5 {[%emt 0:00:36]} fxe5 {[%emt 0:00:07]} 16. fxg6 {[%emt 0:00:10]} Rxf1+ {[%emt 0:01:33] A sharp opening} 17. Qxf1 {[%emt 0:00:19]} hxg6 {[%emt 0:00:02] Successful Defense Black} 18. Bxg6 {[%emt 0:00:11]} Nd6 {[%emt 0:00:03] Repels Qf7+} 19. Be3 {[%emt 0:06:19]} (19. Ng3 {simplifies} Qf6 20. Qxf6 Bxf6 21. Nh5) 19... Be6 {[%emt 0:01:10]} 20. Qf3 {[%emt 0:00:59]} Qh4 {[%emt 0:01:26]} 21. Bc5 {[%emt 0:00:41]} Qh6 {[%emt 0:06:58]} 22. Qd3 {[%emt 0:07:22]} Nc4 {[%emt 0:07:20][%cal Oe5e4]} 23. Qg3 {[%emt 0:03:40]} b6 $1 {[%emt 0:01:14]} 24. Bf2 {[%emt 0:00:11][%cal Bc5f2,Bf2e3,Be3g5][%mdl 32] and b3 should not be overlooked} Rf8 {[%emt 0:09:00][%cal Of8f6]} (24... Nxb2 25. Be3 Qh8 26. Rf1 $16) 25. b3 {[%emt 0:15:28]} Rf6 $1 {[%emt 0:01:32]} 26. Be8 {[%emt 0:01:19]} (26. Bc2 $15 Nd6 27. Be3 (27. Qxe5 $2 Rxf2 28. Qxd6 Rxg2+ 29. Kf1 Qxh3 $19)) 26... Nd6 $1 $19 {[%emt 0:00:40]} 27. Be3 {[%emt 0:00:15] [#]} Qh7 $36 {[%emt 0:06:30][%mdl 2048] Keeping White busy. Some like it hot} 28. Bxc6 {[%emt 0:03:53][%cal Og3e1] [#]} Qe4 $2 {[%emt 0:08:49]} (28... Ne4 $1 $19 {[%cal Re4g3]} 29. Qh2 (29. Qxe5 $2 Rf1+ 30. Rxf1 Bxe5 $19) 29... Qh4) 29. Bg5 $1 $11 {[%emt 0:03:19]} Rg6 {[%emt 0:01:21]} 30. Nd4 {[%emt 0:01:00][%mdl 8192]} exd4 $19 {[%emt 0:04:09]} 31. Qxd6 {[%emt 0:00:07]} dxc3 {[%emt 0:01:32][%cal Og7e5] ...Be5! is the strong threat.} (31... Rxg5 32. Qd8+ Kh7 33. Qxg5 $11) 32. Qd8+ $2 {[%emt 0:02:03]} (32. Qf4 c2 33. Qxe4 dxe4 34. Bxe4 Rxg5 (34... Bd4+ $2 35. Kh1 $19) 35. Rc1) 32... Kh7 {[%emt 0:00:05]} 33. Be8 {[%emt 0:00:15]} Bd4+ {[%emt 0:01:18]} 34. Kh1 {[%emt 0:00:32]} Rg7 {[%emt 0:00:04]} 35. Bh5 {[%emt 0:01:10]} Bxh3 {[%emt 0:02:05][%csl Gh3][%cal Re4g2]} 36. Bf3 {[%emt 0:00:41]} Qf5 {[%emt 0:02:40]} 37. Bxd5 {[%emt 0:05:26]} Rxg5 {[%emt 0:00:38]} ({Weaker is} 37... Qxg5 38. Be4+ Bf5 39. Bxf5+ Qxf5 40. Qh4+ Kg6 41. Qxd4 $17) 38. Qe7+ {[%emt 0:02:49]} Kh6 {[%emt 0:00:20]} 39. Qd6+ {[%emt 0:00:47]} Qf6 {[%emt 0:00:31]} (39... Rg6 $142 40. Qh2 Qxd5 (40... c2 $2 41. Re1 $19) 41. Qxh3+ Kg7 (41... Qh5 $2 42. Rc1 $19) 42. Kh2 c2 (42... Rh6 $2 43. g3 $19) 43. Rc1 Be5+ (43... Rh6 44. Rxc2 Be5+ 45. g3 Rxh3+ 46. Kxh3 Qh1+ 47. Kg4 Kg6 48. Rh2 Qe4+ 49. Kh3 Qf3 50. Kh4 Qxg3#) 44. Kg1 Qd1+ 45. Rxd1 cxd1=Q+ 46. Kf2 Bd4+ 47. Qe3 Qd2+ (47... Bxe3+ 48. Kxe3 Re6+ 49. Kf4 Qf1+ 50. Kg3 Rg6+ 51. Kh4 Qh1#) (47... Qd3 48. Qxd4+ Qxd4+ 49. Kf1 Rf6+ 50. Ke2 Rf2+ 51. Ke1 Qd2#) 48. Kf1 Bxe3 49. a4 Rf6#) 40. Qxf6+ {[%emt 0:03:20]} Bxf6 {[%emt 0:00:03] A strong pair of Bishops.} 41. Rf1 {[%emt 0:30:04]} Rf5 {[%emt 0:31:13] Weighted Error Value: White=0.98/Black=0.28 (precise)   Loses game:     	White=1     	---        Mistake:       	White=3     	Black=2      Inaccurate:     	White=3     	Black=3      OK:         	White=8     	Black=13     Best:        	White=3     	Black=2      Strong:       	White=1     	Black=3} (41... Rxd5 $142 42. Rxf6+ Kg5 43. Rf3 c2 (43... Rd1+ $2 44. Kh2 $19) 44. Rc3 Rd1+ 45. Kh2 Bf5 (45... c1=R $2 46. Rxh3 Rh1+ 47. Kg3 $19) (45... c1=Q $2 46. Rxc1 Rxc1 47. Kxh3 $19) 46. Rxc2 Bxc2 47. Kg3 a5 (47... Rd3+ $2 48. Kf2 $19) 48. Kf3 Ra1 49. Ke3 Rxa2 (49... Re1+ $2 50. Kd2 $19) 50. Kd4 Bxb3 51. Kc3 Bf7 52. Kd4 Rb2 (52... Rxg2 {is a self mate.} 53. Kd3 Rg3+ 54. Ke4 a4 55. Ke5 Rd3 56. Ke4 Bc4 57. Ke5 a3 58. Ke4 a2 59. Ke5 a1=Q+ 60. Ke4 Qe1#) 53. Ke5 a4 (53... Rxg2 54. Ke4 Rg4+ 55. Ke5 Rg2 56. Kd4 a4 57. Ke5 a3 58. Kd6 Rc2 59. Ke7 a2 60. Kxf7 a1=Q 61. Ke8 Qg7 62. Kd8 Kf4 63. Ke8 Rc8#) 54. Kd6 a3 (54... Rxg2 55. Ke5 a3 56. Kd6 a2 57. Kd7 a1=Q 58. Kd6 Rc2 59. Ke7 Qa7+ 60. Kf8 Rc8+ 61. Kg7 Bh5#) 55. g3 a2 56. Kd7 a1=Q (56... a1=B $2 57. Kc7 $19) 57. Kd6 Qa3+ 58. Kc7 Qa7+ (58... Qxg3+ 59. Kb7 Bd5+ 60. Kc8 Rh2 61. Kd7 Rh7+ 62. Ke8 Qb8#) 59. Kc8 Rh2 60. Kd8 Rh8#) 0-1